[Event "*** Titled Tuesday 3|2 Blitz"]
[Site "Chess.com"]
[Date "2015.08.04"]
[Round "8"]
[White "michaelk123"]
[Black "wonderfultime"]
[Result "0-1"]
[WhiteElo "2060"]
[BlackElo "2633"]
[TimeControl "180+2"]
[EndTime "13:15:49 PDT"]
[Termination "wonderfultime won on time"]

1. e4 {[%clk 0:03:01.9]} 1... c5 {[%clk 0:02:51.5]} 2. Nf3 {[%clk 0:03:02.3]}
2... Nc6 {[%clk 0:02:43]} 3. Bb5 {[%clk 0:03:02.6]} 3... d6 {[%clk 0:02:43.7]}
4. d4 {[%clk 0:03:03.2]} 4... cxd4 {[%clk 0:02:42.7]} 5. Qxd4 {[%clk 0:03:04]}
5... Nf6 {[%clk 0:02:41.8]} 6. Qd3 {[%clk 0:02:43]} 6... Bd7 {[%clk 0:02:38.5]}
7. Bg5 {[%clk 0:02:27.3]} 7... Rc8 {[%clk 0:02:32.6]} 8. c4 {[%clk 0:02:23]}
8... a6 {[%clk 0:02:31.6]} 9. Bxc6 {[%clk 0:02:23]} 9... bxc6 {[%clk 0:02:26.7]}
10. Nc3 {[%clk 0:02:22.7]} 10... h6 {[%clk 0:02:17]} 11. Bh4 {[%clk 0:02:16.7]}
11... g5 {[%clk 0:01:14.8]} 12. Bg3 {[%clk 0:02:17.2]} 12... Bg7 {[%clk
0:01:16.4]} 13. h3 {[%clk 0:01:42.4]} 13... Nh5 {[%clk 0:01:10]} 14. Bh2 {[%clk
0:01:43]} 14... Nf4 {[%clk 0:01:11.6]} 15. Bxf4 {[%clk 0:01:39.1]} 15... gxf4
{[%clk 0:01:13.5]} 16. c5 {[%clk 0:01:25.1]} 16... dxc5 {[%clk 0:00:50.9]} 17.
O-O-O {[%clk 0:01:20.3]} 17... Qc7 {[%clk 0:00:42.1]} 18. Qc4 {[%clk 0:01:15.7]}
18... Be6 {[%clk 0:00:31.9]} 19. Qxc5 {[%clk 0:01:12.1]} 19... Rb8 {[%clk
0:00:33.4]} 20. Nd4 {[%clk 0:01:09.7]} 20... Bd7 {[%clk 0:00:29.5]} 21. Rhe1
{[%clk 0:00:57.5]} 21... Qe5 {[%clk 0:00:19.4]} 22. Qc4 {[%clk 0:00:51.3]} 22...
O-O {[%clk 0:00:20]} 23. Nf3 {[%clk 0:00:46.2]} 23... Qc7 {[%clk 0:00:21.3]} 24.
e5 {[%clk 0:00:35.5]} 24... Qb7 {[%clk 0:00:22.5]} 25. Rd2 {[%clk 0:00:31.4]}
25... Be6 {[%clk 0:00:23.8]} 26. Qxf4 {[%clk 0:00:18.5]} 26... Rfd8 {[%clk
0:00:25]} 27. Red1 {[%clk 0:00:18.4]} 27... Rxd2 {[%clk 0:00:26.1]} 28. Rxd2
{[%clk 0:00:20.3]} 28... c5 {[%clk 0:00:27.8]} 29. Nh4 {[%clk 0:00:14.3]} 29...
Qb4 {[%clk 0:00:26.7]} 30. Qxb4 {[%clk 0:00:13]} 30... cxb4 {[%clk 0:00:28.6]}
31. Ne2 {[%clk 0:00:11.8]} 31... Bxe5 {[%clk 0:00:29]} 32. Nf3 {[%clk
0:00:12.7]} 32... Bf6 {[%clk 0:00:29.8]} 33. Ned4 {[%clk 0:00:13.5]} 33... Bd5
{[%clk 0:00:27.5]} 34. b3 {[%clk 0:00:12.8]} 34... Be4 {[%clk 0:00:25.9]} 35.
Kd1 {[%clk 0:00:12.6]} 35... e6 {[%clk 0:00:19.6]} 36. Ke2 {[%clk 0:00:13.3]}
36... a5 {[%clk 0:00:20]} 37. Ke3 {[%clk 0:00:14.4]} 37... Bd5 {[%clk
0:00:21.4]} 38. Rc2 {[%clk 0:00:14.5]} 38... Ra8 {[%clk 0:00:22]} 39. Rc7 {[%clk
0:00:11.2]} 39... a4 {[%clk 0:00:21.5]} 40. Nc6 {[%clk 0:00:09.2]} 40... axb3
{[%clk 0:00:21]} 41. axb3 {[%clk 0:00:10.4]} 41... Ra3 {[%clk 0:00:19.7]} 42.
Nfd4 {[%clk 0:00:04.6]} 42... Bxb3 {[%clk 0:00:21]} 43. Nxb4 {[%clk 0:00:03]}
43... Bd5+ {[%clk 0:00:18.1]} 44. Nd3 {[%clk 0:00:02.8]} 44... Bxg2 {[%clk
0:00:17.9]} 45. Nc2 {[%clk 0:00:02.5]} 45... Ra4 {[%clk 0:00:17.4]} 0-1

[Event "*** Titled Tuesday 3|2 Blitz"]
[Site "Chess.com"]
[Date "2015.08.04"]
[Round "8"]
[White "ER404"]
[Black "NMJeevanK"]
[Result "0-1"]
[WhiteElo "2047"]
[BlackElo "2101"]
[TimeControl "180+2"]
[EndTime "13:15:51 PDT"]
[Termination "NMJeevanK won by resignation"]

1. d4 {[%clk 0:03:01.9]} 1... d5 {[%clk 0:02:59.4]} 2. c4 {[%clk 0:03:02.7]}
2... c6 {[%clk 0:03:00.8]} 3. cxd5 {[%clk 0:03:04.2]} 3... cxd5 {[%clk
0:03:02.7]} 4. Bf4 {[%clk 0:03:05.5]} 4... Nf6 {[%clk 0:03:04.6]} 5. e3 {[%clk
0:03:06.5]} 5... Nc6 {[%clk 0:03:05.9]} 6. Nc3 {[%clk 0:03:04.2]} 6... e6 {[%clk
0:03:07.3]} 7. Bd3 {[%clk 0:03:01.3]} 7... a6 {[%clk 0:03:08]} 8. Rc1 {[%clk
0:03:01.9]} 8... Qb6 {[%clk 0:03:06.5]} 9. Nge2 {[%clk 0:03:00.8]} 9... h6
{[%clk 0:03:00.3]} 10. O-O {[%clk 0:03:01.1]} 10... Be7 {[%clk 0:03:00]} 11. Na4
{[%clk 0:02:58.3]} 11... Qd8 {[%clk 0:03:00.3]} 12. Qb3 {[%clk 0:02:57.4]} 12...
O-O {[%clk 0:02:48.7]} 13. Nb6 {[%clk 0:02:52.6]} 13... Na5 {[%clk 0:02:47.2]}
14. Qa4 {[%clk 0:02:07.4]} 14... Qxb6 {[%clk 0:02:38]} 15. Bc7 {[%clk
0:02:08.3]} 15... Qxb2 {[%clk 0:02:05.1]} 16. Rb1 {[%clk 0:01:59.9]} 16... Qd2
{[%clk 0:02:03.7]} 17. Rfd1 {[%clk 0:01:54.9]} 17... b5 {[%clk 0:02:03.7]} 18.
Rxd2 {[%clk 0:01:25.7]} 18... bxa4 {[%clk 0:01:58.3]} 19. Bxa5 {[%clk
0:01:26.8]} 19... Bd7 {[%clk 0:01:52.7]} 20. Rb7 {[%clk 0:01:16.5]} 20... Rfb8
{[%clk 0:01:43.2]} 21. Rdb2 {[%clk 0:01:15.8]} 21... Rxb7 {[%clk 0:01:42.2]} 22.
Rxb7 {[%clk 0:01:17.7]} 22... Bf8 {[%clk 0:01:40.8]} 23. f3 {[%clk 0:01:06.7]}
23... Rc8 {[%clk 0:01:32]} 24. Kf2 {[%clk 0:01:01.4]} 24... a3 {[%clk
0:01:09.5]} 25. Bc7 {[%clk 0:00:38.4]} 25... Bb5 {[%clk 0:00:45.3]} 26. Bb1
{[%clk 0:00:21.3]} 26... Ne8 {[%clk 0:00:37.6]} 27. Ba5 {[%clk 0:00:22]} 27...
Nd6 {[%clk 0:00:35.6]} 28. Rc7 {[%clk 0:00:20.1]} 28... Rb8 {[%clk 0:00:33.8]}
29. Nc3 {[%clk 0:00:17.9]} 29... Bc4 {[%clk 0:00:32.4]} 30. e4 {[%clk 0:00:12]}
30... Nb5 {[%clk 0:00:23.4]} 31. Nxb5 {[%clk 0:00:10.2]} 31... Rxb5 {[%clk
0:00:24.2]} 32. exd5 {[%clk 0:00:08.9]} 32... exd5 {[%clk 0:00:24.2]} 33. Bc3
{[%clk 0:00:02.6]} 33... Rxb1 {[%clk 0:00:23.1]} 34. Rc8 {[%clk 0:00:04.5]}
34... g6 {[%clk 0:00:18.7]} 35. Bd2 {[%clk 0:00:04.1]} 35... Kg7 {[%clk
0:00:19.5]} 36. Bf4 {[%clk 0:00:05]} 36... Rb2+ {[%clk 0:00:19.8]} 37. Kg3
{[%clk 0:00:05.1]} 37... Be7 {[%clk 0:00:20.2]} 38. Rc7 {[%clk 0:00:05]} 38...
Bf6 {[%clk 0:00:21.3]} 39. h4 {[%clk 0:00:03.6]} 39... Bf1 {[%clk 0:00:22.3]}
40. Kg4 {[%clk 0:00:03.3]} 40... Rxg2+ {[%clk 0:00:23]} 41. Kh3 {[%clk
0:00:04.8]} 41... Rc2+ {[%clk 0:00:24.1]} 42. Kg3 {[%clk 0:00:04.7]} 42... Rxc7
{[%clk 0:00:25]} 43. Bxc7 {[%clk 0:00:06.6]} 43... Bxd4 {[%clk 0:00:26.3]} 44.
Bd6 {[%clk 0:00:07.9]} 44... Bb2 {[%clk 0:00:25.8]} 45. Kf2 {[%clk 0:00:09]}
45... Bc4 {[%clk 0:00:27.7]} 46. h5 {[%clk 0:00:10.4]} 46... Bxa2 {[%clk
0:00:29.6]} 47. Be5+ {[%clk 0:00:10.8]} 47... Bxe5 {[%clk 0:00:29.4]} 48. hxg6
{[%clk 0:00:12.2]} 48... fxg6 {[%clk 0:00:30.1]} 49. f4 {[%clk 0:00:14.1]} 49...
Bxf4 {[%clk 0:00:31.2]} 0-1

[Event "*** Titled Tuesday 3|2 Blitz"]
[Site "Chess.com"]
[Date "2015.08.04"]
[Round "8"]
[White "BjarkeSahl"]
[Black "Prolta"]
[Result "1-0"]
[WhiteElo "2103"]
[BlackElo "1695"]
[TimeControl "180+2"]
[EndTime "13:15:54 PDT"]
[Termination "BjarkeSahl won by resignation"]

1. e4 {[%clk 0:02:30.1]} 1... e6 {[%clk 0:03:00.6]} 2. d4 {[%clk 0:02:19.9]}
2... d5 {[%clk 0:03:02]} 3. Nc3 {[%clk 0:02:19.1]} 3... Nf6 {[%clk 0:03:02.4]}
4. Bg5 {[%clk 0:02:19.2]} 4... Be7 {[%clk 0:03:02.9]} 5. e5 {[%clk 0:02:19.4]}
5... Nfd7 {[%clk 0:03:03.5]} 6. h4 {[%clk 0:02:21]} 6... h6 {[%clk 0:02:59.3]}
7. Bxe7 {[%clk 0:02:14.5]} 7... Qxe7 {[%clk 0:02:59.9]} 8. Qg4 {[%clk 0:02:11]}
8... O-O {[%clk 0:02:54.4]} 9. f4 {[%clk 0:02:01.8]} 9... f5 {[%clk 0:02:50.6]}
10. Qg3 {[%clk 0:01:54.3]} 10... a6 {[%clk 0:02:46.3]} 11. Nce2 {[%clk
0:01:48.1]} 11... c5 {[%clk 0:02:45.4]} 12. c3 {[%clk 0:01:49.4]} 12... cxd4
{[%clk 0:02:40.6]} 13. Nxd4 {[%clk 0:01:50.1]} 13... Nc6 {[%clk 0:02:42]} 14.
Ngf3 {[%clk 0:01:45.6]} 14... Nc5 {[%clk 0:02:34.3]} 15. h5 {[%clk 0:01:38.7]}
15... Ne4 {[%clk 0:02:31.1]} 16. Qh4 {[%clk 0:01:40.2]} 16... Qxh4+ {[%clk
0:02:30.9]} 17. Rxh4 {[%clk 0:01:41.2]} 17... Kf7 {[%clk 0:02:11]} 18. Bd3
{[%clk 0:01:39.5]} 18... Bd7 {[%clk 0:01:55.8]} 19. Ke2 {[%clk 0:01:36.7]} 19...
Rac8 {[%clk 0:01:51]} 20. Ke3 {[%clk 0:01:37.6]} 20... b5 {[%clk 0:01:46.5]} 21.
g4 {[%clk 0:01:37.8]} 21... fxg4 {[%clk 0:01:33.6]} 22. Rxg4 {[%clk 0:01:37.5]}
22... Nxd4 {[%clk 0:01:07.5]} 23. Nxd4 {[%clk 0:01:37.1]} 23... Rg8 {[%clk
0:00:49.4]} 24. Rag1 {[%clk 0:01:16.5]} 24... Rc7 {[%clk 0:00:31.7]} 25. Rg6
{[%clk 0:01:11.7]} 25... Nc5 {[%clk 0:00:22.7]} 26. Bc2 {[%clk 0:01:08.6]} 26...
Bc8 {[%clk 0:00:10.9]} 27. R6g2 {[%clk 0:01:03.3]} 27... Kf8 {[%clk 0:00:09.6]}
28. Bh7 {[%clk 0:00:53.2]} 28... Rh8 {[%clk 0:00:07.8]} 29. Bg6 {[%clk
0:00:54.8]} 29... Rg8 {[%clk 0:00:06.9]} 30. Rf1 {[%clk 0:00:52.8]} 30... Nb7
{[%clk 0:00:05.2]} 31. Rgf2 {[%clk 0:00:48.9]} 31... Nd8 {[%clk 0:00:04.1]} 32.
f5 {[%clk 0:00:48.6]} 32... exf5 {[%clk 0:00:06]} 33. Bxf5 {[%clk 0:00:49.6]}
33... Bxf5 {[%clk 0:00:07.9]} 34. Rxf5+ {[%clk 0:00:49.4]} 34... Ke7 {[%clk
0:00:08.8]} 35. Rg1 {[%clk 0:00:39.8]} 35... Ne6 {[%clk 0:00:09.2]} 36. Rg6
{[%clk 0:00:35.5]} 36... Ng5 {[%clk 0:00:09.7]} 37. Rf4 {[%clk 0:00:28]} 37...
Rf8 {[%clk 0:00:11.6]} 38. Nf5+ {[%clk 0:00:28.6]} 38... Rxf5 {[%clk 0:00:07.8]}
39. Rxf5 {[%clk 0:00:29.1]} 39... Ke8 {[%clk 0:00:06.4]} 40. Kd4 {[%clk
0:00:26.1]} 40... Nf7 {[%clk 0:00:07.1]} 41. Kxd5 {[%clk 0:00:25.9]} 41... Nxe5
{[%clk 0:00:07.9]} 42. Rxe5+ {[%clk 0:00:26.5]} 42... Kd8 {[%clk 0:00:08.2]} 43.
Rxa6 {[%clk 0:00:25]} 43... Rd7+ {[%clk 0:00:10]} 44. Rd6 {[%clk 0:00:25.8]}
44... Kc7 {[%clk 0:00:11.9]} 45. Rxd7+ {[%clk 0:00:24.9]} 45... Kxd7 {[%clk
0:00:12.7]} 46. b4 {[%clk 0:00:26.3]} 46... Kc7 {[%clk 0:00:13.2]} 1-0

[Event "*** Titled Tuesday 3|2 Blitz"]
[Site "Chess.com"]
[Date "2015.08.04"]
[Round "8"]
[White "dretch"]
[Black "Storne89"]
[Result "1-0"]
[WhiteElo "2575"]
[BlackElo "2498"]
[TimeControl "180+2"]
[EndTime "13:16:12 PDT"]
[Termination "dretch won by resignation"]

1. d4 {[%clk 0:03:01.9]} 1... Nf6 {[%clk 0:02:56.4]} 2. c4 {[%clk 0:03:03.2]}
2... e6 {[%clk 0:02:57.6]} 3. Nf3 {[%clk 0:03:04.3]} 3... Bb4+ {[%clk 0:02:58]}
4. Nbd2 {[%clk 0:03:05.4]} 4... O-O {[%clk 0:02:50.7]} 5. a3 {[%clk 0:03:06.1]}
5... Be7 {[%clk 0:02:51.2]} 6. e4 {[%clk 0:03:07.2]} 6... d6 {[%clk 0:02:52.7]}
7. Bd3 {[%clk 0:03:08.5]} 7... c5 {[%clk 0:02:48.7]} 8. d5 {[%clk 0:03:06.1]}
8... e5 {[%clk 0:02:47.3]} 9. O-O {[%clk 0:03:00.3]} 9... Nh5 {[%clk 0:02:37.1]}
10. g3 {[%clk 0:02:58.8]} 10... g6 {[%clk 0:02:35.8]} 11. Re1 {[%clk 0:02:58.5]}
11... Bh3 {[%clk 0:02:25.5]} 12. b4 {[%clk 0:02:55.2]} 12... b6 {[%clk 0:02:26]}
13. Bf1 {[%clk 0:02:48.4]} 13... Qc8 {[%clk 0:02:20.1]} 14. Bxh3 {[%clk
0:02:29.4]} 14... Qxh3 {[%clk 0:02:20.3]} 15. bxc5 {[%clk 0:02:30.4]} 15... bxc5
{[%clk 0:02:18.5]} 16. Rb1 {[%clk 0:02:30.4]} 16... Qc8 {[%clk 0:01:58.7]} 17.
Nb3 {[%clk 0:02:26.1]} 17... Bd8 {[%clk 0:01:58]} 18. Bd2 {[%clk 0:02:19.1]}
18... a5 {[%clk 0:01:58.9]} 19. Bc3 {[%clk 0:02:01.1]} 19... Ng7 {[%clk
0:01:49.9]} 20. Qd2 {[%clk 0:01:18.7]} 20... a4 {[%clk 0:01:46.6]} 21. Na5
{[%clk 0:01:19.7]} 21... Bxa5 {[%clk 0:01:46]} 22. Bxa5 {[%clk 0:01:20.5]} 22...
f5 {[%clk 0:01:29.3]} 23. Qh6 {[%clk 0:01:06.1]} 23... Nh5 {[%clk 0:00:30.5]}
24. Ng5 {[%clk 0:00:57]} 24... Qd7 {[%clk 0:00:26.9]} 25. Bc7 {[%clk 0:00:44.1]}
25... Qxc7 {[%clk 0:00:23.2]} 26. Qxf8+ {[%clk 0:00:43.2]} 26... Kxf8 {[%clk
0:00:12.1]} 27. Ne6+ {[%clk 0:00:45.1]} 27... Ke7 {[%clk 0:00:13.7]} 28. Nxc7
{[%clk 0:00:46.4]} 28... Ra7 {[%clk 0:00:15.3]} 29. Rxb8 {[%clk 0:00:45.4]}
29... Rxc7 {[%clk 0:00:16.5]} 30. Reb1 {[%clk 0:00:39.5]} 30... Nf6 {[%clk
0:00:13.4]} 31. R1b7 {[%clk 0:00:39.1]} 31... Kd7 {[%clk 0:00:13.1]} 32. exf5
{[%clk 0:00:39.6]} 32... gxf5 {[%clk 0:00:13.8]} 33. Rxc7+ {[%clk 0:00:40.8]}
33... Kxc7 {[%clk 0:00:15]} 34. Rf8 {[%clk 0:00:42.7]} 34... Ne4 {[%clk
0:00:15.8]} 35. Rxf5 {[%clk 0:00:43.5]} 35... Nd2 {[%clk 0:00:17.2]} 36. Rf7+
{[%clk 0:00:44.6]} 36... Kb6 {[%clk 0:00:16.7]} 37. Rxh7 {[%clk 0:00:46.5]}
37... Nxc4 {[%clk 0:00:17.9]} 38. g4 {[%clk 0:00:36.8]} 38... e4 {[%clk
0:00:16.5]} 39. Rh3 {[%clk 0:00:34.3]} 39... Ne5 {[%clk 0:00:16.8]} 40. g5
{[%clk 0:00:31.9]} 40... c4 {[%clk 0:00:17]} 41. Rg3 {[%clk 0:00:29.8]} 41...
Kc5 {[%clk 0:00:10.9]} 42. g6 {[%clk 0:00:29.9]} 42... Nxg6 {[%clk 0:00:10.3]}
43. Rxg6 {[%clk 0:00:31.8]} 43... Kxd5 {[%clk 0:00:11.9]} 44. Kf1 {[%clk
0:00:30.8]} 44... c3 {[%clk 0:00:13.2]} 45. Ke2 {[%clk 0:00:32]} 45... Kc5
{[%clk 0:00:12.4]} 46. Rg8 {[%clk 0:00:23.4]} 46... Kc4 {[%clk 0:00:11.5]} 47.
Rb8 {[%clk 0:00:23.7]} 47... d5 {[%clk 0:00:11.4]} 48. Rb4+ {[%clk 0:00:24.6]}
48... Kc5 {[%clk 0:00:13]} 49. Kd1 {[%clk 0:00:21.5]} 49... d4 {[%clk
0:00:14.2]} 50. Kc2 {[%clk 0:00:23]} 50... Kd5 {[%clk 0:00:15.2]} 51. h4 {[%clk
0:00:20.3]} 51... Ke5 {[%clk 0:00:16.4]} 52. h5 {[%clk 0:00:21.6]} 52... Kf4
{[%clk 0:00:16.5]} 53. h6 {[%clk 0:00:23.2]} 53... Kf3 {[%clk 0:00:14.4]} 54. h7
{[%clk 0:00:24.5]} 54... Ke2 {[%clk 0:00:16]} 55. Rxd4 {[%clk 0:00:25.3]} 1-0

[Event "*** Titled Tuesday 3|2 Blitz"]
[Site "Chess.com"]
[Date "2015.08.04"]
[Round "8"]
[White "Zlatan56"]
[Black "Tobi-Wan-Kenobi"]
[Result "1-0"]
[WhiteElo "2482"]
[BlackElo "2369"]
[TimeControl "180+2"]
[EndTime "13:16:23 PDT"]
[Termination "Zlatan56 won by resignation"]

1. Nf3 {[%clk 0:03:01.9]} 1... c5 {[%clk 0:02:56.2]} 2. c4 {[%clk 0:03:01.4]}
2... Nc6 {[%clk 0:02:56]} 3. Nc3 {[%clk 0:03:03]} 3... Nf6 {[%clk 0:02:54.8]} 4.
e3 {[%clk 0:03:04.2]} 4... e5 {[%clk 0:02:42]} 5. d4 {[%clk 0:03:03.9]} 5...
cxd4 {[%clk 0:02:40.6]} 6. exd4 {[%clk 0:03:04.3]} 6... e4 {[%clk 0:02:41.9]} 7.
Ne5 {[%clk 0:03:02.2]} 7... Bb4 {[%clk 0:02:40.2]} 8. Be2 {[%clk 0:02:58.4]}
8... Qa5 {[%clk 0:02:29.2]} 9. O-O {[%clk 0:02:58.8]} 9... Nxe5 {[%clk
0:02:20.9]} 10. dxe5 {[%clk 0:03:00.7]} 10... Qxe5 {[%clk 0:02:21]} 11. Bd2
{[%clk 0:03:01]} 11... O-O {[%clk 0:02:15.6]} 12. Nxe4 {[%clk 0:02:57.4]} 12...
Bxd2 {[%clk 0:02:07.4]} 13. Nxf6+ {[%clk 0:02:58]} 13... Qxf6 {[%clk 0:02:04.2]}
14. Qxd2 {[%clk 0:02:58.9]} 14... d6 {[%clk 0:02:00.7]} 15. Rad1 {[%clk
0:02:59]} 15... Be6 {[%clk 0:01:59.5]} 16. b3 {[%clk 0:02:58.8]} 16... Rfd8
{[%clk 0:01:59.4]} 17. Bf3 {[%clk 0:02:59.1]} 17... Rab8 {[%clk 0:01:59]} 18.
Rfe1 {[%clk 0:02:58.7]} 18... b5 {[%clk 0:01:50.8]} 19. cxb5 {[%clk 0:02:46.8]}
19... Rxb5 {[%clk 0:01:52.7]} 20. Re3 {[%clk 0:02:48]} 20... h6 {[%clk 0:01:29]}
21. Rd3 {[%clk 0:02:48.5]} 21... d5 {[%clk 0:01:07.2]} 22. Rd4 {[%clk
0:02:48.7]} 22... Rc5 {[%clk 0:01:01.1]} 23. h4 {[%clk 0:02:40.2]} 23... Rdc8
{[%clk 0:01:01]} 24. Qe3 {[%clk 0:02:04]} 24... Rc3 {[%clk 0:00:57.8]} 25. Qf4
{[%clk 0:01:55.3]} 25... Qxf4 {[%clk 0:00:54.4]} 26. Rxf4 {[%clk 0:01:57.2]}
26... Rc2 {[%clk 0:00:55.1]} 27. Ra4 {[%clk 0:01:51.6]} 27... R8c7 {[%clk
0:00:48.1]} 28. Bxd5 {[%clk 0:01:26.2]} 28... Rd7 {[%clk 0:00:31.7]} 29. Bf3
{[%clk 0:01:18.7]} 29... Rxd1+ {[%clk 0:00:28.4]} 30. Bxd1 {[%clk 0:01:20.6]}
30... Rc1 {[%clk 0:00:26.1]} 31. Rd4 {[%clk 0:01:21.3]} 31... Ra1 {[%clk
0:00:21.7]} 32. Rd2 {[%clk 0:01:22]} 32... Kf8 {[%clk 0:00:23.4]} 33. f3 {[%clk
0:01:20.8]} 33... Ke7 {[%clk 0:00:25]} 34. Kf2 {[%clk 0:01:21.9]} 34... a5
{[%clk 0:00:26]} 35. Ke3 {[%clk 0:01:22]} 35... a4 {[%clk 0:00:27.2]} 36. bxa4
{[%clk 0:01:12]} 36... Bxa2 {[%clk 0:00:29.1]} 37. Kd4 {[%clk 0:01:12.9]} 37...
Be6 {[%clk 0:00:25.9]} 38. Kc5 {[%clk 0:01:13.8]} 38... g5 {[%clk 0:00:25.1]}
39. hxg5 {[%clk 0:01:13.6]} 39... hxg5 {[%clk 0:00:27]} 40. Kb6 {[%clk
0:01:12.7]} 40... Rb1+ {[%clk 0:00:27.7]} 41. Ka7 {[%clk 0:01:09.9]} 41... Ra1
{[%clk 0:00:28.8]} 42. Ka6 {[%clk 0:01:09.7]} 42... f5 {[%clk 0:00:27.3]} 43. a5
{[%clk 0:01:06.6]} 43... Bc4+ {[%clk 0:00:27.8]} 44. Kb6 {[%clk 0:01:07]} 44...
Rb1+ {[%clk 0:00:29.1]} 45. Kc5 {[%clk 0:00:46.3]} 45... Bf1 {[%clk 0:00:29.3]}
46. Ba4 {[%clk 0:00:33.1]} 46... Ra1 {[%clk 0:00:26.2]} 47. Kb4 {[%clk
0:00:33.2]} 47... Ke6 {[%clk 0:00:24.9]} 48. Rb2 {[%clk 0:00:30.4]} 48... Ke5
{[%clk 0:00:24.1]} 49. Bb5 {[%clk 0:00:30.3]} 49... Bxb5 {[%clk 0:00:11]} 50.
Kxb5 {[%clk 0:00:32.2]} 50... Kd4 {[%clk 0:00:11.3]} 51. Kb6 {[%clk 0:00:26.7]}
51... Kc3 {[%clk 0:00:12.4]} 52. Rb5 {[%clk 0:00:27.4]} 52... Ra2 {[%clk
0:00:13]} 53. Rxf5 {[%clk 0:00:23.8]} 53... Rxg2 {[%clk 0:00:13.7]} 54. a6
{[%clk 0:00:25]} 1-0